fUSD/lending_fUSD_20240523
["ID","MTS","AMOUNT","RATE_DAILY","PERIOD"]
[327797227,1716489049139,-328.93,0.00024699,2]
[327797228,1716489049148,-500.0,0.00024699,2]
[327797229,1716489049158,-500.0,0.00024699,2]
[327797230,1716489049166,-500.69,0.00024699,2]
[327797231,1716489049178,-500.0,0.00024699,2]
[327797232,1716489049188,-500.0,0.00024699,2]
[327797233,1716489049197,-500.0,0.00024699,2]
[327797234,1716489049206,-500.0,0.00024699,2]
[327797235,1716489049215,-500.0,0.00024699,2]
[327797236,1716489049225,-519.25,0.00024699,2]
[327797237,1716489049234,-170.73,0.00024699,2]
[327797238,1716489049243,-530.4868461,0.00024699,2]
[327797239,1716489049252,-500.0,0.00024699,2]
[327797240,1716489049262,-500.0,0.00024699,2]
[327797241,1716489049271,-500.0,0.00024699,2]
[327797242,1716489049280,-500.0,0.00024699,2]
[327797243,1716489049290,-413.58,0.00024699,2]
[327797244,1716489049299,-455.14,0.00024699,2]
[327797245,1716489049308,-456.51,0.00024699,2]
[327797246,1716489049317,-13159.04558516,0.00024705,2]
[327797247,1716489049327,-178.57,0.00024747,2]
[327797248,1716489049336,-7500.0,0.00024799,2]
[327797249,1716489049346,-1566.41558323,0.00024835,2]
[327797250,1716489049355,-152.98363769,0.00024854,2]
[327797251,1716489049364,-1020.48,0.00024864,2]
[327797252,1716489049374,-500.0,0.00024864,2]
[327797253,1716489049383,-500.0,0.00024864,2]
[327797254,1716489049395,-526.2,0.00024864,2]
[327797255,1716489049404,-500.0,0.00024864,2]
[327797256,1716489049413,-920.26,0.00024864,2]
[327797257,1716489049422,-500.0,0.00024864,2]
[327797258,1716489049435,-500.0,0.00024864,2]
[327797259,1716489049444,-1041.46,0.00024864,2]
[327797260,1716489049454,-515.28,0.00024864,2]
[327797261,1716489049463,-1000.0,0.00024875,2]
[327797262,1716489049476,-1000.0,0.00024875,2]
[327797263,1716489049486,-1000.0,0.00024875,2]
[327797264,1716489049495,-1000.0,0.00024875,2]
[327797265,1716489049504,-1000.0,0.00024875,2]
[327797266,1716489049514,-1000.0,0.00024875,2]
[327797267,1716489049523,-1000.0,0.00024875,2]
[327797268,1716489049532,-1000.0,0.00024875,2]
[327797269,1716489049541,-1000.0,0.00024875,2]
[327797270,1716489049550,-1000.0,0.00024875,2]
[327797271,1716489049559,-1000.0,0.00024875,2]
[327797272,1716489049568,-1000.0,0.00024875,2]
[327797273,1716489049578,-1000.0,0.00024875,2]
[327797274,1716489049587,-1000.0,0.00024875,2]
[327797275,1716489049596,-1000.0,0.00024875,2]
[327797276,1716489049605,-1000.0,0.00024875,2]
[327797277,1716489049615,-1000.0,0.00024875,2]
[327797278,1716489049624,-1000.0,0.00024875,2]
[327797279,1716489049632,-1000.0,0.00024875,2]
[327797280,1716489049642,-1000.0,0.00024875,2]
[327797281,1716489049651,-1000.0,0.00024875,2]
[327797282,1716489049660,-1000.0,0.00024875,2]
[327797283,1716489049669,-1000.0,0.00024875,2]
[327797284,1716489049682,-1000.0,0.00024875,2]
[327797285,1716489049692,-1000.0,0.00024875,2]
[327797286,1716489049703,-1000.0,0.00024875,2]
[327797287,1716489049713,-1000.0,0.00024875,2]
[327797288,1716489049722,-604.2966,0.00024875,2]
[327797289,1716489049731,-349.98695375,0.000249,2]
[327797290,1716489049741,-2754.63037028,0.000249,2]
[327797291,1716489049750,-5223.9550022,0.000249,2]
[327797292,1716489049759,-253.53752532,0.000249,2]
[327797293,1716489049769,-187.87375198,0.000249,2]
[327797294,1716489049779,-1875.298,0.00024901,2]
[327797295,1716489049788,-500.0,0.00024931,2]
[327797296,1716489049797,-651.65,0.00024931,2]
[327797297,1716489049806,-665.18,0.00024931,2]
[327797298,1716489049816,-500.0,0.00024931,2]
[327797299,1716489049825,-500.0,0.00024931,2]
[327797300,1716489049835,-1100.54,0.00024931,2]
[327797301,1716489049843,-545.43,0.00024931,2]
[327797302,1716489049853,-500.0,0.00024931,2]
[327797303,1716489049862,-500.0,0.00024931,2]
[327797304,1716489049871,-500.0,0.00024931,2]
[327797305,1716489049880,-632.96,0.00024931,2]
[327797306,1716489049890,-1664.35,0.00024931,2]
[327797307,1716489049899,-500.0,0.00024931,2]
[327797308,1716489049908,-500.0,0.00024931,2]
[327797309,1716489049918,-500.0,0.00024931,2]
[327797310,1716489049929,-4511.49,0.00024931,2]
[327797311,1716489049938,-631.18816136,0.00024931,2]
[327797312,1716489049947,-500.0,0.00024947,2]
[327797313,1716489049957,-539.58,0.00024947,2]
[327797314,1716489049968,-500.0,0.00024947,2]
[327797315,1716489049978,-500.0,0.00024947,2]
[327797316,1716489049987,-500.0,0.00024947,2]
[327797317,1716489049996,-500.0,0.00024947,2]
[327797318,1716489050006,-500.0,0.00024947,2]
[327797319,1716489050015,-500.0,0.00024947,2]
[327797320,1716489050024,-500.0,0.00024947,2]
[327797321,1716489050034,-500.0,0.00024947,2]
[327797322,1716489050044,-304.8281137,0.00024947,2]
[327797323,1716489050054,-500.0,0.00024947,2]
[327797324,1716489050064,-150.0,0.00024947,2]
[327797325,1716489050074,-591.58,0.00024947,2]
[327797326,1716489050083,-500.0,0.00024947,2]
[327797327,1716489050093,-571.94,0.00024947,2]
[327797328,1716489050103,-630.77564427,0.00024947,2]
[327797329,1716489050113,-500.0,0.00024947,2]
[327797330,1716489050122,-500.0,0.00024947,2]
[327797331,1716489050132,-500.0,0.00024947,2]
[327797332,1716489050141,-500.0,0.00024947,2]
[327797333,1716489050151,-600.15,0.00024947,2]
[327797334,1716489050161,-500.0,0.00024947,2]
[327797335,1716489050170,-500.0,0.00024947,2]
[327797336,1716489050182,-500.0,0.00024947,2]
[327797337,1716489050191,-500.0,0.00024947,2]
[327797338,1716489050200,-500.0,0.00024947,2]
[327797339,1716489050210,-500.0,0.00024947,2]
[327797340,1716489050219,-154.42,0.00024948,2]
[327797341,1716489050229,-260.73,0.00024948,2]
[327797342,1716489050238,-642.94,0.00024948,2]
[327797343,1716489050248,-218.92,0.00024948,2]
[327797344,1716489050257,-500.0,0.00024948,2]
[327797345,1716489050267,-481.99,0.00024948,2]
[327797346,1716489050276,-500.0,0.00024948,2]
[327797347,1716489050285,-500.0,0.00024948,2]
[327797348,1716489050296,-426.06,0.00024948,2]
[327797349,1716489050305,-744.81,0.00024948,2]
[327797350,1716489050315,-500.0,0.00024948,2]
[327797351,1716489050325,-500.0,0.00024948,2]
[327797352,1716489050334,-733.02,0.00024948,2]
[327797353,1716489050344,-601.32,0.00024948,2]
[327797354,1716489050354,-500.0,0.00024948,2]
[327797355,1716489050364,-500.0,0.00024948,2]
[327797356,1716489050374,-646.93,0.00024948,2]
[327797357,1716489050385,-209.06310343,0.00024948,2]
[327797358,1716489050397,-500.0,0.00024948,2]
[327797359,1716489050406,-433.81,0.00024948,2]
[327797360,1716489050416,-500.0,0.00024948,2]
[327797361,1716489050425,-598.79,0.00024948,2]
[327797362,1716489050437,-500.0,0.00024948,2]
[327797363,1716489050447,-500.0,0.00024948,2]
[327797364,1716489050456,-500.0,0.00024948,2]
[327797365,1716489050466,-763.67,0.00024948,2]
[327797366,1716489050477,-547.81,0.00024948,2]
[327797367,1716489050486,-828.83,0.00024948,2]
[327797368,1716489050496,-500.0,0.00024948,2]
[327797369,1716489050505,-500.0,0.00024948,2]
[327797370,1716489050514,-196.16138394,0.00024973,2]
[327797371,1716489050524,-391.3304354,0.00024973,2]
[327797372,1716489050534,-500.0,0.00024973,2]
[327797373,1716489050544,-500.0,0.00024973,2]
[327797374,1716489050553,-500.0,0.00024973,2]
[327797375,1716489050563,-500.0,0.00024973,2]
[327797376,1716489050574,-500.0,0.00024973,2]
[327797377,1716489050583,-500.0,0.00024973,2]
[327797378,1716489050594,-331.05,0.00024973,2]
[327797379,1716489050604,-500.0,0.00024973,2]
[327797380,1716489050613,-536.27,0.00024973,2]
[327797381,1716489050623,-495.21898397,0.00024973,2]
[327797382,1716489050632,-500.0,0.00024973,2]
[327797383,1716489050643,-500.0,0.00024973,2]
[327797384,1716489050653,-500.0,0.00024973,2]
[327797385,1716489050663,-514.57,0.00024973,2]
[327797386,1716489050673,-500.0,0.00024973,2]
[327797387,1716489050684,-500.0,0.00024973,2]
[327797388,1716489050694,-500.0,0.00024973,2]
[327797389,1716489050703,-496.32,0.00024973,2]
[327797390,1716489050713,-202.76,0.00024973,2]
[327797391,1716489050723,-500.0,0.00024973,2]
[327797392,1716489050732,-13318.3302957,0.00024985,2]
[327797393,1716489050742,-6617.3382823,0.00024985,2]
[327797394,1716489050753,-2830.8649765,0.00024985,2]
[327797395,1716489050763,-15551.9386242,0.00024985,2]
[327797396,1716489050772,-2016.94227978,0.0002499,2]
[327797397,1716489050782,-152.98363769,0.00024992,2]
[327797398,1716489050791,-21855.33828356,0.00025,15]
[327797399,1716489050801,-215.13326472,0.00025,2]
[327797400,1716489050811,-926.99561138,0.00025,2]
[327797401,1716489050820,-155.0,0.00025,2]
[327797402,1716489050830,-5000.0,0.00025,7]
[327797403,1716489050839,-224.3459268,0.00025,2]
[327797404,1716489050849,-289516.97922801,0.00025,2]
[327797405,1716489050909,-14531.14211443,0.00025,2]
[327797406,1716489050920,-5919.86879322,0.00025,2]
[327797407,1716489050933,-7834.52175885,0.00025,2]
[327797408,1716489050944,-15334.45737703,0.00025,2]
[327797409,1716489050956,-10393.73513079,0.00025,2]
[327797410,1716489050967,-6716.0,0.00025,2]
[327797411,1716489050979,-2010.45606,0.00025,2]
[327797412,1716489050990,-1582.57081775,0.00025,2]
[327797413,1716489051002,-13261.25761203,0.00025,2]
[327797414,1716489051013,-33776.48728615,0.00025,2]
[327797415,1716489051038,-749.43,0.0002459,2]
[327797416,1716489051047,-749.43,0.00024864,2]
[327797417,1716489051057,-9072.07246281,0.000249,2]
[327797418,1716489051067,-3715.64503302,0.00025,2]
[327797419,1716489051078,-575.17541342,0.00025,2]
[327797420,1716489051088,-588.45109601,0.00025,2]
[327797421,1716489051133,-6703.25832,0.00025,2]
[327797422,1716489051144,-6723.6,0.00025,2]
[327797423,1716489051155,-1368.67,0.00025,2]
[327797424,1716489051167,-1686.4662,0.00025,2]
[327797425,1716489051188,-259.1099901,0.00025,2]
[327797426,1716489051200,-6745.7235685,0.00025,2]
[327797427,1716489051211,-1339.09765074,0.00025,2]
[327797430,1716489085839,2603.99957143,0.00018951,2]
[327797431,1716489085904,1298.18587077,0.00019285,2]
[327797432,1716489086282,314.74261016,0.00014504,2]
[327797433,1716489086717,14392.77409408,0.00019338,2]
[327797434,1716489087824,155.0,0.00014503,2]
[327797435,1716489087894,155.0,0.00014503,2]
[327797436,1716489087958,207.05672543,0.00014503,2]
[327797437,1716489088039,155.0,0.00014503,2]
[327797438,1716489088106,162.7247781,0.00014503,2]
[327797439,1716489088167,155.0,0.00014503,2]
[327797440,1716489088266,4395.03703088,0.00019338,2]
[327797441,1716489088332,155.0,0.00014502,2]
[327797442,1716489088403,155.0,0.00014502,2]
[327797443,1716489088458,179.05,0.00016712,2]
[327797444,1716489088891,19504.25693756,0.0001895,2]
[327797445,1716489090376,1381.71812519,0.00014502,2]
[327797446,1716489092694,4746.17709519,0.00014502,2]
[327797447,1716489094278,256.19202014,0.00019338,2]
[327797448,1716489096573,325.05561043,0.00014501,2]
[327797449,1716489097869,3307.43360536,0.00017259,2]
[327797450,1716489098057,155.0,0.00014501,2]
[327797451,1716489105129,2363.90704889,0.00017259,2]
[327797452,1716489112589,280.2729,0.00019929,2]
[327797454,1716489115906,245.38,0.00027068,30]
[327797455,1716489131967,1249.24282258,0.00017259,2]
[327797456,1716489132979,5277.27573839,0.00017259,2]
[327797457,1716489134994,4599.90407763,0.00017259,2]
[327797458,1716489150490,536.10998017,0.00017259,2]
[327797459,1716489182598,150.0,0.00019725,2]
[327797460,1716489182793,150.0,0.00019725,2]
[327797461,1716489204146,1000.0,0.00030281,120]
[327797462,1716489224317,7294923.64843988,0.00013,2]
[327797463,1716489229684,210.42228446,0.00019451,2]
[327797464,1716489235743,1169.64981347,9e-05,2]
[327797465,1716489244823,15908.40209421,0.000118,2]
[327797466,1716489258946,337.19158014,0.00019451,2]
[327797467,1716489261615,344.66778136,0.00019451,2]
[327797468,1716489268475,15789.35855437,6.94e-05,2]
[327797469,1716489268875,2630.33508372,0.0002,30]
[327797470,1716489273811,1290.53,0.00019896,2]
[327797471,1716489279746,531.10034735,0.00017259,2]
[327797472,1716489305597,2252.1236114,0.00019451,2]
[327797473,1716489306764,406.25226612,0.00019451,2]
[327797474,1716489313891,157.83143433,0.00019451,2]
[327797475,1716489324731,446.92582242,0.00017259,2]
[327797476,1716489391392,8976.73265433,0.0001,2]
[327797478,1716489394409,43108.1280981,0.00013,2]
[327797479,1716489395376,196.11,0.00013973,2]
[327797480,1716489413323,287.77198498,0.000125,2]
[327797481,1716489429749,209.3642623,0.0001,2]
[327797482,1716489540013,5845.04257446,0.00017259,2]
[327797483,1716489555977,2547.53888368,7.5e-05,2]
[327797484,1716489589974,2547.53888368,5.625e-05,2]
[327797485,1716489607611,17357.38334896,7.5e-05,2]
[327797486,1716489611973,2547.53888368,5.625e-05,2]
[327797487,1716489641126,150.0,0.0002,2]
[327797488,1716489687990,2547.86451751,4.219e-05,2]
[327797489,1716489690936,286.14197288,0.00019723,2]
[327797490,1716489691314,19736.88825378,5.625e-05,2]
[327797491,1716489691809,957.63376761,5.344e-05,2]
[327797492,1716489692090,549.40255929,0.0001,2]
[327797493,1716489692194,948.3061,5.625e-05,2]
[327797494,1716489692253,178.78799801,5.625e-05,2]
[327797495,1716489692645,326.95181777,0.00017259,2]
[327797496,1716489693064,7521.14051331,5.625e-05,2]
[327797497,1716489694324,362.26669991,5.625e-05,2]
[327797498,1716489695454,452.1504802,0.00019503,2]
[327797499,1716489695504,300.0903904,5.625e-05,2]
[327797500,1716489695558,1362.82549172,5.625e-05,2]
[327797501,1716489696928,155.35934212,5.625e-05,2]
[327797502,1716489696994,180.25026804,0.0001,2]
[327797503,1716489697530,2605.72998571,0.00012,2]
[327797504,1716489698331,289.30751023,5.625e-05,2]
[327797505,1716489700043,155.0,5.625e-05,2]
[327797506,1716489700192,20226.86051452,5.625e-05,2]
[327797507,1716489701195,2330.05360267,0.00017259,2]
[327797508,1716489701599,115874.34270738,0.0002,2]
[327797509,1716489703772,170.9348211,5e-05,2]
[327797510,1716489712525,1153.77897372,0.00017259,2]
[327797511,1716489714275,526.78620518,0.00017259,2]
[327797512,1716489752549,150.92389961,0.000285,30]
[327797513,1716489821376,452.84235246,0.00015358,2]
[327797514,1716489823523,157.81511748,0.0001553,2]
[327797515,1716489824625,256.32786092,0.00016911,2]
[327797516,1716489824798,423.63696114,0.0001553,2]
[327797517,1716489827340,500.0,0.000169,6]
[327797518,1716489840745,423.63696114,0.00015521,2]
[327797519,1716489858733,390.07795516,0.00015519,2]
[327797520,1716489860696,160.28,0.00013973,2]
[327797521,1716489861011,549.40255929,0.00015521,2]
[327797522,1716489862056,7521.14051331,0.00015521,2]
[327797523,1716489863253,155.0,0.00015521,2]
[327797524,1716489864250,299.04252939,0.00015521,2]
[327797525,1716489866531,155.0,0.00015521,2]
[327797526,1716489867347,292.43579581,0.00015521,2]
[327797527,1716489868733,362.26669991,0.00015521,2]
[327797528,1716489868818,264.61831255,0.00015521,2]
[327797529,1716489871091,287636.47638144,0.00015521,2]
[327797530,1716489871145,260150.56407349,0.00015521,2]
[327797531,1716489871204,20226.86051452,0.00015521,2]
[327797532,1716489872519,2548.73780077,0.00011641,2]
[327797533,1716489873270,289.30751023,0.00015521,2]
[327797534,1716489873792,409.92000217,0.00015521,2]
[327797535,1716489874708,187.06,0.00013378,2]
[327797536,1716489876093,7521.14051331,0.00015521,2]
[327797537,1716489876576,2605.72998571,0.00015211,2]
[327797538,1716489877773,19736.88825378,0.00015521,2]
[327797539,1716489879047,549.40255929,0.00015521,2]
[327797540,1716489879265,155.0,0.00015521,2]
[327797541,1716489881367,381.45488229,0.00015521,2]
[327797542,1716489882913,155.0,0.00015521,2]
[327797543,1716489882991,362.26669991,0.00015521,2]
[327797544,1716489883513,405.52485641,0.00015521,2]
[327797545,1716489883571,176.41220836,0.00015521,2]
[327797547,1716489886517,342.66788727,0.00011641,2]
[327797548,1716489887116,547787.04045493,0.00015521,2]
[327797549,1716489887185,20226.86051452,0.00015521,2]
[327797550,1716489889793,526.18710283,0.00015521,2]
[327797551,1716489892548,2605.72998571,0.00015211,2]
[327797552,1716489892867,8595.59,0.00016553,2]
[327797553,1716489893264,166.17506559,0.00015521,2]
[327797554,1716489893816,19736.88825378,0.00015521,2]
[327797555,1716489895271,155.0,0.00015521,2]
[327797556,1716489900557,155.0,0.00015521,2]
[327797557,1716489903134,20226.86051452,0.00015521,2]
[327797558,1716489904870,155.0,0.00015521,2]
[327797559,1716489906759,362.26669991,0.00015521,2]
[327797560,1716489907125,547787.04045493,0.00015521,2]
[327797561,1716489910563,2605.72998571,0.00015211,2]
[327797562,1716489913806,19736.88825378,0.00015521,2]
[327797563,1716489919150,20226.86051452,0.00015521,2]
[327797564,1716489920554,305.24075493,0.00015521,2]
[327797565,1716489921054,155.0,0.00015521,2]
[327797566,1716489924697,2605.72998571,0.00015211,2]
[327797567,1716489926049,153.912285,0.00015616,2]
[327797568,1716489926765,364.18556096,0.00015521,2]
[327797569,1716489928035,153.912285,0.00016438,2]
[327797570,1716489929122,547787.04045493,0.00015521,2]
[327797571,1716489931619,211.16,0.00016175,2]
[327797572,1716489937777,19736.88825378,0.00015521,2]
[327797573,1716489939144,477.76017976,0.00015521,2]
[327797574,1716489940558,1743.12455194,0.00015211,2]
[327797575,1716489943564,155.0,0.00015521,2]
[327797576,1716489949130,547787.04045493,0.00015521,2]
[327797580,1716489956630,1280.12,0.00016161,2]
[327797581,1716489958891,155.0,0.00015521,2]
[327797582,1716489960625,514.23,0.00016996,3]
[327797583,1716489963797,19736.88825378,0.00015521,2]
[327797584,1716489971157,162156.94747897,0.00015521,2]
[327797585,1716489976860,155.0,0.00015521,2]
[327797586,1716489977558,1381.71812519,0.00016999,2]
[327797587,1716489978196,306.48466096,0.00016999,2]
[327797588,1716489979489,325.05561043,0.00016999,2]
[327797589,1716489979903,155.0,0.00016999,2]
[327797590,1716489979966,378.30951817,0.00016999,2]
[327797591,1716489980082,155.0,0.00016999,2]
[327797592,1716489980259,403.88154406,0.00016999,2]
[327797593,1716489980888,686.67265106,0.00016999,2]
[327797594,1716489981103,155.0,0.00016999,2]
[327797595,1716489983786,19736.88825378,0.00015521,2]
[327797596,1716489984473,804.06709515,0.00016999,2]
[327797597,1716489985324,208.77597556,0.00016998,2]
[327797598,1716489985570,2223.47774106,0.00016999,2]
[327797599,1716489985771,155.0,0.00016998,2]
[327797600,1716489986608,204.76153898,0.00016999,2]
[327797601,1716489987597,541.26136792,0.00016999,2]
[327797602,1716489988453,290.54141611,0.00016999,2]
[327797603,1716489988884,155.0,0.00016999,2]
[327797604,1716489989346,237.45326717,0.00016999,2]
[327797605,1716489989973,489.16139777,0.00016999,2]
[327797606,1716489990899,10531.13290305,0.00016999,2]
[327797607,1716489991315,410.00321735,0.00016999,2]
[327797608,1716489992366,623.91243924,0.00016999,2]
[327797609,1716489992427,620.27755436,0.00016906,2]
[327797610,1716489992584,155.0,0.00016999,2]
[327797611,1716489993328,326.10124525,0.00016999,2]
[327797612,1716489993576,1180.1693692,0.00016999,2]
[327797613,1716489993968,713.51808082,0.00016999,2]
[327797614,1716489994655,155.0,0.00016999,2]
[327797615,1716489995935,155.0,0.00016999,2]
[327797616,1716489996068,155.0,0.00016999,2]
[327797617,1716489996594,155.0,0.00016999,2]
[327797618,1716489996647,165.97090475,0.00016999,2]
[327797619,1716489997546,282.00774447,0.00016999,2]
[327797620,1716489997637,834.86816958,0.00016999,2]
[327797621,1716489997691,314.06550453,0.00016999,2]
[327797622,1716489998669,2187.63741095,0.00016999,2]
[327797623,1716489998729,155.0,0.00016999,2]
[327797624,1716489999241,155.0,0.00016999,2]
[327797625,1716489999782,17069.40563151,0.00015521,2]
[327797626,1716490001304,155.0,0.00016999,2]
[327797627,1716490002895,155.0,0.00016999,2]
[327797628,1716490002955,207.5485086,0.00016999,2]
[327797629,1716490003468,206.41260794,0.00016999,2]
[327797630,1716490003555,4599.90407763,0.00016999,2]
[327797631,1716490003610,10943.88615633,0.00016999,2]
[327797632,1716490003667,252.54840536,0.00016999,2]
[327797633,1716490004100,155.0,0.00016999,2]
[327797634,1716490004158,263.21358901,0.00016999,2]
[327797635,1716490004423,43327.92188896,0.00016999,2]
[327797636,1716490004481,155.0,0.00016999,2]
[327797637,1716490004858,326.95181777,0.00016999,2]
[327797638,1716490004914,155.0,0.00016999,2]
[327797639,1716490005004,3647.0,0.00016999,2]
[327797640,1716490005248,1064.51850023,0.00016999,2]
[327797641,1716490005556,19504.25693756,0.00016999,2]
[327797642,1716490005882,167.98358105,0.00016999,2]
[327797643,1716490006024,155.0,0.00016999,2]
[327797644,1716490006582,5566.93826705,0.00016999,2]
[327797645,1716490006801,155.0,0.00016999,2]
[327797646,1716490007152,516.52085088,0.00016999,2]
[327797647,1716490007236,3091.82152495,0.00016999,2]
[327797648,1716490008080,1000.0,0.00016999,2]
[327797649,1716490008357,5081.65664504,0.00017,2]
[327797650,1716490008689,155.0,0.00016999,2]
[327797651,1716490008838,155.0,0.00016999,2]
[327797652,1716490009768,2363.90704889,0.00016999,2]
[327797653,1716490010872,156.20876749,0.00016999,2]
[327797654,1716490011104,8302.872729,0.00016915,2]
[327797655,1716490011486,7520.7073187,0.00016999,2]
[327797656,1716490011831,314.06550453,0.00016152,2]
[327797657,1716490011889,162.57049507,0.00016999,2]
[327797658,1716490011956,751.44548382,0.00016999,2]
[327797659,1716490012307,4746.17709519,0.00016999,2]
[327797660,1716490012979,406.25226612,0.00016999,2]
[327797661,1716490013034,162.1290141,0.00016999,2]
[327797662,1716490013184,155.0,0.00016999,2]
[327797663,1716490013664,302.88393418,0.00016999,2]
[327797664,1716490013782,2330.05360267,0.00016999,2]
[327797665,1716490013846,784.20684881,0.00016999,2]
[327797666,1716490014479,4279.6454942,0.00016999,2]
[327797667,1716490015150,266.47432347,0.00016914,2]
[327797668,1716490015224,939.86578351,0.00016914,2]
[327797669,1716490015573,155.0,0.00016999,2]
[327797670,1716490016778,155.0,0.00016914,2]
[327797671,1716490017514,176.66856544,0.00016914,2]
[327797672,1716490017739,1790.57682134,0.00016999,2]
[327797673,1716490018210,656.891773,0.00016999,2]
[327797674,1716490018327,4431.54285729,0.00016914,2]
[327797675,1716490019096,4599.90407763,0.00016988,2]
[327797676,1716490019262,1215.1703712,0.00016999,2]
[327797677,1716490019546,234.36766967,0.00016999,2]
[327797678,1716490019946,361.3085147,0.00016999,2]
[327797679,1716490021048,155.0,0.00016999,2]
[327797680,1716490021109,2919.65023509,0.00016999,2]
[327797681,1716490021902,155.0,0.00016999,2]
[327797682,1716490022224,155.0,0.00016999,2]
[327797683,1716490022481,155.0,0.00016999,2]
[327797684,1716490024062,252.54840536,0.00016833,2]
[327797685,1716490024884,446.92582242,0.00016999,2]
[327797686,1716490025474,790.14207646,0.00016999,2]
[327797687,1716490025727,344.66778136,0.00016999,2]
[327797688,1716490025799,23900.0,0.00016178,2]
[327797689,1716490025908,155.0,0.00016999,2]
[327797690,1716490026135,1249.24282258,0.00016999,2]
[327797691,1716490026278,534.8660217,0.00016999,2]
[327797692,1716490026352,5081.65664504,0.00017,2]
[327797693,1716490026791,3010.28376271,0.00016999,2]
[327797694,1716490026949,5277.27573839,0.00016999,2]
[327797695,1716490027779,1298.59905335,0.00016999,2]
[327797696,1716490028791,534.8660217,0.00016999,2]
[327797697,1716490029097,201.05005513,0.00016832,2]
[327797698,1716490029480,314.06550453,0.00016153,2]
[327797699,1716490029636,155.0,0.00016832,2]
[327797700,1716490029697,3286.44742835,0.00016999,2]
[327797701,1716490029890,157.83143433,0.00016832,2]
[327797702,1716490029961,751.44548382,0.00015302,2]
[327797704,1716490033279,534.8660217,0.00016999,2]
[327797705,1716490037110,4073.42119291,0.00016987,2]
[327797706,1716490039454,500.0,0.000169,6]
[327797707,1716490040061,252.54840536,0.00016832,2]
[327797708,1716490042075,19504.25693756,0.00016999,2]
[327797709,1716490042759,1298.59905335,0.00016152,2]
[327797710,1716490044066,325.05561043,0.00016999,2]
[327797711,1716490044366,300.03143119,0.00017,2]
[327797712,1716490045938,314.06550453,0.00016151,2]
[327797713,1716490045999,751.44548382,0.00015301,2]
[327797714,1716490050485,644.16557128,0.00016901,2]
[327797715,1716490053562,19504.25693756,0.00016999,2]
[327797716,1716490054783,1298.59905335,0.00016151,2]
[327797717,1716490056578,1381.71812519,0.00016999,2]
[327797718,1716490058057,252.54840536,0.00016831,2]
[327797719,1716490058407,155.0,0.00016999,2]
[327797720,1716490059424,686.67265106,0.00016999,2]
[327797721,1716490060974,804.06709515,0.00016999,2]
[327797722,1716490062967,489.16139777,0.00016999,2]
[327797723,1716490063017,1180.1693692,0.00016999,2]
[327797724,1716490063555,155.0,0.00016999,2]
[327797725,1716490063966,751.44548382,0.00015299,2]
[327797726,1716490064028,242.36,0.00016178,2]
[327797727,1716490064119,834.86816958,0.00016999,2]
[327797728,1716490064776,210.42228446,0.00016999,2]
[327797729,1716490065833,435.01665677,0.00016149,2]
[327797730,1716490066953,290.54141611,0.00016999,2]
[327797731,1716490069010,174.78,0.00012938,2]
[327797732,1716490069117,155.0,0.00016999,2]
[327797733,1716490069394,155.0,0.00016999,2]
[327797734,1716490070120,541.26136792,0.00016999,2]
[327797735,1716490070411,237.22996103,0.00016999,2]